[Event "Djerba Festival Blitz 2025"]
[Site "Djerba"]
[Date "2025.02.21"]
[Round "3.8"]
[White "Thorfinnsson, Bjorn"]
[Black "Nassr, Lina"]
[Result "1-0"]
[ECO "D03"]
[WhiteElo "2377"]
[BlackElo "1934"]
[PlyCount "99"]
[EventDate "2025.02.15"]
[EventType "swiss"]
[EventCountry "TUN"]
[TimeControl "180+3"]

1. d4 {[%emt 0:00:03]} d5 {[%emt 0:00:03]} 2. Nf3 {[%emt 0:00:03]} Nf6 {[%emt 0:00:02]} 3. Bg5 {[%emt 0:00:02]} e6 {[%emt 0:00:04]} 4. e3 {[%emt 0:00:03]} Be7 {[%emt 0:00:03]} 5. Bd3 {[%emt 0:00:03]} Nbd7 {[%emt 0:00:05]} 6. Nbd2 {[%emt 0:00:02]} O-O {[%emt 0:00:24]} 7. c3 {[%emt 0:00:02]} c5 {[%emt 0:00:09]} 8. Qc2 {[%emt 0:00:03]} h6 {[%emt 0:00:02]} 9. h4 {[%emt 0:00:02]} Qc7 {[%emt 0:00:11]} 10. g4 {[%emt 0:00:08]} cxd4 {[%emt 0:00:38]} 11. exd4 {[%emt 0:00:04]} e5 {[%emt 0:00:05]} 12. dxe5 {[%emt 0:00:29]} Nxe5 {[%emt 0:00:02]} 13. Bxf6 {[%emt 0:00:13]} Bxf6 {[%emt 0:00:12]} 14. g5 {[%emt 0:00:04]} Nxd3+ {[%emt 0:00:31]} 15. Qxd3 {[%emt 0:00:04]} Re8+ {[%emt 0:00:16]} 16. Kd1 {[%emt 0:00:04]} Be7 {[%emt 0:00:37]} 17. gxh6 {[%emt 0:00:05]} g6 {[%emt 0:00:09]} 18. Rg1 {[%emt 0:00:02]} Kh7 {[%emt 0:00:05]} 19. Nd4 {[%emt 0:00:21]} Bf6 {[%emt 0:00:07]} 20. h5 {[%emt 0:00:08]} Rg8 {[%emt 0:00:05]} 21. hxg6+ fxg6 {[%emt 0:00:02]} 22. N2f3 {[%emt 0:00:38]} Qf4 {[%emt 0:00:02]} 23. Kc2 {[%emt 0:00:20]} Bf5 {[%emt 0:00:09]} 24. Nxf5 {[%emt 0:00:06]} Qxf5 {[%emt 0:00:02]} 25. Rad1 {[%emt 0:00:27]} Qxd3+ {[%emt 0:00:06]} 26. Rxd3 {[%emt 0:00:02]} Rad8 {[%emt 0:00:02]} 27. Rgd1 {[%emt 0:00:02]} Kxh6 {[%emt 0:00:03]} 28. Rxd5 {[%emt 0:00:02]} Rxd5 {[%emt 0:00:03]} 29. Rxd5 {[%emt 0:00:02]} Rf8 {[%emt 0:00:03]} 30. Nd2 {[%emt 0:00:14]} Bg5 {[%emt 0:00:03]} 31. Ne4 {[%emt 0:00:03]} Bf4 {[%emt 0:00:04]} 32. Rd7 {[%emt 0:00:03]} Re8 {[%emt 0:00:04]} 33. f3 {[%emt 0:00:08]} Rb8 {[%emt 0:00:04]} 34. Nc5 {[%emt 0:00:06]} b6 {[%emt 0:00:03]} 35. Ne6 {[%emt 0:00:02]} Be5 {[%emt 0:00:03]} 36. Rxa7 {[%emt 0:00:06]} Re8 {[%emt 0:00:02]} 37. Nd4 {[%emt 0:00:10]} Rf8 {[%emt 0:00:03]} 38. Rb7 {[%emt 0:00:13]} Rf6 {[%emt 0:00:03]} 39. Kd3 {[%emt 0:00:03]} g5 {[%emt 0:00:03]} 40. Ke4 {[%emt 0:00:02]} Bf4 {[%emt 0:00:03]} 41. Nf5+ {[%emt 0:00:06]} Kg6 {[%emt 0:00:03]} 42. Rg7+ {[%emt 0:00:02]} Kh5 {[%emt 0:00:03]} 43. Rh7+ {[%emt 0:00:03]} Kg6 {[%emt 0:00:03]} 44. Rh6+ {[%emt 0:00:01]} Kf7 {[%emt 0:00:02]} 45. Rxf6+ Kxf6 {[%emt 0:00:02]} 46. Ne3 {[%emt 0:00:07]} Ke6 {[%emt 0:00:03]} 47. Nd5 {[%emt 0:00:04]} Bc1 {[%emt 0:00:03]} 48. b3 {[%emt 0:00:03]} Bb2 {[%emt 0:00:05]} 49. c4 {[%emt 0:00:02]} Be5 {[%emt 0:00:06]} 50. Nxb6 {[%emt 0:00:11] Kd5+} 1-0

[Event "Djerba Festival Blitz 2025"]
[Site "Djerba"]
[Date "2025.02.21"]
[Round "3.9"]
[White "Achour, Mohamed Anis"]
[Black "Stopa, Jacek"]
[Result "0-1"]
[ECO "B13"]
[WhiteElo "2066"]
[BlackElo "2310"]
[PlyCount "86"]
[EventDate "2025.02.15"]
[EventType "swiss"]
[EventCountry "TUN"]
[TimeControl "180+3"]

1. d4 {[%emt 0:00:04]} d5 {[%emt 0:00:08]} 2. Bf4 {[%emt 0:00:03]} c5 {[%emt 0:00:04]} 3. e3 {[%emt 0:00:02]} Nc6 {[%emt 0:00:03]} 4. Nf3 {[%emt 0:00:05]} cxd4 5. exd4 {[%emt 0:00:03]} Bg4 {[%emt 0:00:30]} 6. c3 {[%emt 0:00:04]} e6 {[%emt 0:00:21]} 7. Nbd2 {[%emt 0:00:04]} Bd6 {[%emt 0:00:02]} 8. Bg3 {[%emt 0:00:03]} Nge7 {[%emt 0:00:03]} 9. Bd3 {[%emt 0:00:03]} Bf5 {[%emt 0:00:12]} 10. Bxf5 Nxf5 {[%emt 0:00:02]} 11. Bxd6 {[%emt 0:00:19]} Qxd6 {[%emt 0:00:06]} 12. O-O {[%emt 0:00:06]} O-O {[%emt 0:00:04]} 13. Re1 {[%emt 0:00:03]} b5 {[%emt 0:00:02]} 14. Nb3 {[%emt 0:00:05]} b4 {[%emt 0:00:07]} 15. Nc5 {[%emt 0:00:03]} bxc3 {[%emt 0:00:03]} 16. bxc3 {[%emt 0:00:02]} Rab8 {[%emt 0:00:05]} 17. Qa4 {[%emt 0:00:07]} Rb6 {[%emt 0:00:05]} 18. Rab1 {[%emt 0:00:07]} Nfe7 {[%emt 0:00:08]} 19. Rxb6 {[%emt 0:00:15]} axb6 {[%emt 0:00:02]} 20. Nd3 {[%emt 0:00:02]} h6 {[%emt 0:00:17]} 21. Rb1 {[%emt 0:00:03]} Na5 {[%emt 0:00:03]} 22. Qb5 {[%emt 0:00:09]} Rc8 {[%emt 0:00:07]} 23. Qb4 {[%emt 0:00:38]} Qxb4 {[%emt 0:00:08]} 24. cxb4 {[%emt 0:00:02]} Nc4 {[%emt 0:00:03]} 25. a4 {[%emt 0:00:04]} Ra8 {[%emt 0:00:03]} 26. Ra1 {[%emt 0:00:03]} Nc6 {[%emt 0:00:05]} 27. b5 {[%emt 0:00:08]} Na7 {[%emt 0:00:18]} 28. Rb1 {[%emt 0:00:21]} Nc8 {[%emt 0:00:02]} 29. Rb4 {[%emt 0:00:07]} N8d6 {[%emt 0:00:01]} 30. Nfe5 {[%emt 0:00:09]} f6 {[%emt 0:00:07]} 31. Nc6 {[%emt 0:00:08]} Kf7 {[%emt 0:00:03]} 32. f3 {[%emt 0:00:07]} g5 {[%emt 0:00:05]} 33. Kf2 {[%emt 0:00:03]} Nf5 {[%emt 0:00:05]} 34. Nc1 {[%emt 0:00:16]} Nfe3 {[%emt 0:00:05]} 35. Nb3 {[%emt 0:00:31]} Nc2 {[%emt 0:00:17]} 36. Rxc4 dxc4 {[%emt 0:00:02]} 37. Nd2 {[%emt 0:00:04]} Rxa4 {[%emt 0:00:03]} 38. Ne4 {[%emt 0:00:08]} Ra2 {[%emt 0:00:13]} 39. Kg3 {[%emt 0:00:05]} Ne3 {[%emt 0:00:05]} 40. Nd6+ {[%emt 0:00:03]} Kg7 {[%emt 0:00:05]} 41. Nc8 {[%emt 0:00:02]} Rxg2+ {[%emt 0:00:42]} 42. Kh3 {[%emt 0:00:02]} Rb2 {[%emt 0:00:00]} 43. N6a7 {[%emt 0:00:04]} Nf1 {[%emt 0:00:00]} 0-1

[Event "Djerba Festival Blitz 2025"]
[Site "Djerba"]
[Date "2025.02.21"]
[Round "3.10"]
[White "Njili, Kamel"]
[Black "Kaabi, Iheb"]
[Result "1-0"]
[ECO "D20"]
[WhiteElo "2406"]
[BlackElo "1810"]
[PlyCount "69"]
[EventDate "2025.02.15"]
[EventType "swiss"]
[EventCountry "TUN"]
[TimeControl "180+3"]

1. d4 {[%emt 0:00:03]} d5 {[%emt 0:00:03]} 2. c4 {[%emt 0:00:02]} dxc4 {[%emt 0:00:02]} 3. Nc3 {[%emt 0:00:02]} e5 {[%emt 0:00:05]} 4. d5 {[%emt 0:00:09]} a6 {[%emt 0:00:21]} 5. a4 {[%emt 0:00:15]} Nf6 {[%emt 0:00:18]} 6. e4 {[%emt 0:00:15]} Bb4 {[%emt 0:00:06]} 7. f3 {[%emt 0:00:51]} O-O {[%emt 0:00:30]} 8. Bxc4 {[%emt 0:00:09]} Nbd7 {[%emt 0:00:15]} 9. Be3 {[%emt 0:00:20]} Nh5 {[%emt 0:00:40]} 10. Nge2 {[%emt 0:00:07]} Qh4+ {[%emt 0:00:05]} 11. Kd2 {[%emt 0:00:55]} Qf6 {[%emt 0:00:19]} 12. Kc2 {[%emt 0:00:05]} Nb6 {[%emt 0:00:16]} 13. Bb3 {[%emt 0:00:06]} Bd7 {[%emt 0:00:07]} 14. g4 {[%emt 0:00:14]} Nf4 {[%emt 0:00:03]} 15. Nxf4 {[%emt 0:00:03]} exf4 {[%emt 0:00:02]} 16. Bd4 {[%emt 0:00:01]} Qg6 {[%emt 0:00:08]} 17. h4 {[%emt 0:00:03]} Bxc3 {[%emt 0:00:05]} 18. Bxc3 {[%emt 0:00:02]} h6 {[%emt 0:00:15]} 19. h5 {[%emt 0:00:03]} Qd6 {[%emt 0:00:02]} 20. Qd4 {[%emt 0:00:03]} f6 {[%emt 0:00:09]} 21. Bb4 {[%emt 0:00:02]} Qe5 22. Qxe5 {[%emt 0:00:03]} fxe5 {[%emt 0:00:18]} 23. a5 Nc8 {[%emt 0:00:00]} 24. Bxf8 {[%emt 0:00:04]} Kxf8 {[%emt 0:00:00]} 25. Rhc1 {[%emt 0:00:05]} Nd6 {[%emt 0:00:05]} 26. Kd2 {[%emt 0:00:03]} Nb5 {[%emt 0:00:03]} 27. Ba4 {[%emt 0:00:02]} Rc8 {[%emt 0:00:03]} 28. Bxb5 Bxb5 {[%emt 0:00:02]} 29. Rc5 {[%emt 0:00:05]} Ke7 {[%emt 0:00:03]} 30. Rac1 {[%emt 0:00:02]} Kd6 {[%emt 0:00:02]} 31. Ke1 {[%emt 0:00:04]} Ba4 {[%emt 0:00:05]} 32. Kf2 {[%emt 0:00:02]} Bb5 {[%emt 0:00:02]} 33. Kg2 {[%emt 0:00:03]} Ba4 {[%emt 0:00:02]} 34. R1c3 {[%emt 0:00:02]} Bb5 {[%emt 0:00:02]} 35. Kh3 {[%emt 0:00:02]} 1-0

[Event "Djerba Festival Blitz 2025"]
[Site "Djerba"]
[Date "2025.02.21"]
[Round "3.11"]
[White "Amrane, Abdellah"]
[Black "Willems, Niels"]
[Result "0-1"]
[ECO "B13"]
[WhiteElo "2021"]
[BlackElo "2414"]
[PlyCount "95"]
[EventDate "2025.02.15"]
[EventType "swiss"]
[EventCountry "TUN"]
[TimeControl "180+3"]

1. e4 {[%emt 0:00:05]} c6 {[%emt 0:00:03]} 2. d4 {[%emt 0:00:02]} d5 {[%emt 0:00:02]} 3. exd5 {[%emt 0:00:02]} cxd5 {[%emt 0:00:02]} 4. Bd3 {[%emt 0:00:02]} Nf6 {[%emt 0:00:02]} 5. c3 {[%emt 0:00:02]} Bg4 {[%emt 0:00:04]} 6. Nf3 {[%emt 0:00:02]} Nc6 {[%emt 0:00:14]} 7. Bf4 {[%emt 0:00:03]} e6 {[%emt 0:00:02]} 8. Nbd2 {[%emt 0:00:02]} Bd6 {[%emt 0:00:03]} 9. Bxd6 {[%emt 0:00:02]} Qxd6 {[%emt 0:00:03]} 10. O-O {[%emt 0:00:03]} O-O {[%emt 0:00:03]} 11. Qe1 {[%emt 0:00:03]} Bh5 {[%emt 0:00:11]} 12. Ne5 {[%emt 0:00:02]} Bg6 {[%emt 0:00:07]} 13. f4 {[%emt 0:00:13]} Qc7 {[%emt 0:00:13]} 14. Rf3 {[%emt 0:00:07]} Bxd3 {[%emt 0:00:25]} 15. Rxd3 {[%emt 0:00:11]} Nd7 {[%emt 0:00:32]} 16. Rg3 {[%emt 0:00:10]} f6 {[%emt 0:00:11]} 17. Ng4 {[%emt 0:00:07]} Rae8 {[%emt 0:00:09]} 18. Qf2 {[%emt 0:00:16]} e5 {[%emt 0:00:08]} 19. f5 {[%emt 0:00:30]} exd4 {[%emt 0:00:02]} 20. cxd4 {[%emt 0:00:03]} Qb6 {[%emt 0:00:02]} 21. Nf3 {[%emt 0:00:01]} Re4 {[%emt 0:00:02]} 22. Rd1 {[%emt 0:00:13]} Rfe8 {[%emt 0:00:06]} 23. Nh6+ {[%emt 0:00:26]} Kf8 {[%emt 0:00:06]} 24. Ng4 {[%emt 0:00:18]} h5 {[%emt 0:00:05]} 25. Ne3 {[%emt 0:00:15]} Rxe3 {[%emt 0:00:04]} 26. Ne5 {[%emt 0:00:01]} R3xe5 {[%emt 0:00:31]} 27. dxe5 {[%emt 0:00:05]} Qxf2+ {[%emt 0:00:02]} 28. Kxf2 {[%emt 0:00:01]} Rxe5 {[%emt 0:00:02]} 29. Rf3 {[%emt 0:00:11]} d4 {[%emt 0:00:01]} 30. a3 {[%emt 0:00:07]} a5 {[%emt 0:00:03]} 31. h3 {[%emt 0:00:03]} Nc5 {[%emt 0:00:07]} 32. g4 {[%emt 0:00:04]} hxg4 {[%emt 0:00:04]} 33. hxg4 {[%emt 0:00:02]} a4 {[%emt 0:00:03]} 34. g5 {[%emt 0:00:03]} fxg5 {[%emt 0:00:05]} 35. f6 {[%emt 0:00:01]} Ne4+ {[%emt 0:00:10]} 36. Kg2 {[%emt 0:00:06]} gxf6 {[%emt 0:00:05]} 37. b3 {[%emt 0:00:06]} axb3 {[%emt 0:00:12]} 38. Rxb3 {[%emt 0:00:03]} b5 {[%emt 0:00:02]} 39. Rc1 {[%emt 0:00:12]} Nc3 {[%emt 0:00:02]} 40. Rf1 {[%emt 0:00:10]} Ke7 {[%emt 0:00:02]} 41. Rb2 {[%emt 0:00:31]} Re2+ {[%emt 0:00:12]} 42. Rxe2+ {[%emt 0:00:00]} Nxe2 {[%emt 0:00:02]} 43. Kf3 {[%emt 0:00:00]} Nc3 {[%emt 0:00:02]} 44. Rh1 {[%emt 0:00:00]} Ne5+ {[%emt 0:00:04]} 45. Kf2 {[%emt 0:00:00]} Nc4 {[%emt 0:00:04]} 46. Ke1 {[%emt 0:00:03]} d3 {[%emt 0:00:02]} 47. Rh8 {[%emt 0:00:07]} d2+ {[%emt 0:00:03]} 48. Kf2 {[%emt 0:00:11]} 0-1

[Event "Djerba Festival Blitz 2025"]
[Site "Djerba"]
[Date "2025.02.21"]
[Round "3.12"]
[White "Skhiri Youssef"]
[Black "Viers, Emmanuel"]
[Result "0-1"]
[ECO "A53"]
[WhiteElo "1808"]
[BlackElo "2072"]
[PlyCount "92"]
[EventDate "2025.02.15"]
[EventType "swiss"]
[EventCountry "TUN"]
[TimeControl "180+3"]

1. c4 {[%emt 0:00:03]} Nf6 {[%emt 0:00:07]} 2. Nc3 {[%emt 0:00:01]} c6 {[%emt 0:00:02]} 3. e4 {[%emt 0:00:02]} d6 {[%emt 0:00:01]} 4. d4 {[%emt 0:00:03]} Nbd7 {[%emt 0:00:02]} 5. Nge2 {[%emt 0:00:14]} e5 {[%emt 0:00:03]} 6. d5 {[%emt 0:00:02]} g6 {[%emt 0:00:24]} 7. Ng3 {[%emt 0:00:02]} Bg7 {[%emt 0:00:02]} 8. Be2 {[%emt 0:00:03]} a5 {[%emt 0:00:02]} 9. h4 {[%emt 0:00:02]} h5 {[%emt 0:00:06]} 10. Bg5 {[%emt 0:00:04]} Qc7 {[%emt 0:00:18]} 11. Qd2 {[%emt 0:00:36]} Nc5 {[%emt 0:00:30]} 12. Rd1 {[%emt 0:00:30]} cxd5 {[%emt 0:00:11]} 13. Bxf6 {[%emt 0:00:06]} Bxf6 {[%emt 0:00:13]} 14. Nxd5 {[%emt 0:00:02]} Qd8 {[%emt 0:00:02]} 15. Nxf6+ {[%emt 0:00:02]} Qxf6 {[%emt 0:00:01]} 16. Qxd6 {[%emt 0:00:03]} Qxd6 {[%emt 0:00:08]} 17. Rxd6 {[%emt 0:00:02]} Be6 {[%emt 0:00:15]} 18. O-O {[%emt 0:00:21]} Ke7 {[%emt 0:00:02]} 19. Rfd1 {[%emt 0:00:02]} Rhc8 {[%emt 0:00:07]} 20. b3 {[%emt 0:00:28]} Rc7 {[%emt 0:00:12]} 21. Bf3 {[%emt 0:00:06]} Rac8 {[%emt 0:00:02]} 22. Ne2 {[%emt 0:00:05]} a4 {[%emt 0:00:03]} 23. b4 {[%emt 0:00:29]} Na6 {[%emt 0:00:02]} 24. Rb6 {[%emt 0:00:16]} Bxc4 {[%emt 0:00:05]} 25. Nc3 {[%emt 0:00:03]} Kf8 {[%emt 0:00:47]} 26. Nd5 {[%emt 0:00:13]} Bxd5 {[%emt 0:00:10]} 27. exd5 {[%emt 0:00:02]} Rc4 {[%emt 0:00:15]} 28. d6 {[%emt 0:00:25]} Rxb4 {[%emt 0:00:15]} 29. Rxb4 {[%emt 0:00:00]} Nxb4 {[%emt 0:00:00]} 30. Bxb7 {[%emt 0:00:00]} Rd8 {[%emt 0:00:01]} 31. a3 {[%emt 0:00:01]} Nc2 {[%emt 0:00:02]} 32. Rc1 {[%emt 0:00:06]} Nxa3 {[%emt 0:00:03]} 33. Rd1 {[%emt 0:00:05]} Nc4 {[%emt 0:00:02]} 34. d7 {[%emt 0:00:06]} Ke7 {[%emt 0:00:02]} 35. Bc6 {[%emt 0:00:00]} a3 {[%emt 0:00:03]} 36. Bb5 {[%emt 0:00:00]} Nd6 {[%emt 0:00:02]} 37. Ba4 {[%emt 0:00:06]} Ra8 {[%emt 0:00:02]} 38. Bb3 {[%emt 0:00:03]} a2 {[%emt 0:00:04]} 39. Ra1 {[%emt 0:00:02]} Kxd7 {[%emt 0:00:03]} 40. Rxa2 {[%emt 0:00:02]} Rb8 {[%emt 0:00:03]} 41. Rb2 {[%emt 0:00:02]} Ke7 {[%emt 0:00:04]} 42. Kh2 {[%emt 0:00:04]} Ne4 {[%emt 0:00:02]} 43. Rb1 {[%emt 0:00:04]} Nd2 {[%emt 0:00:02]} 44. Rc1 {[%emt 0:00:04]} Nxb3 {[%emt 0:00:03]} 45. Rc7+ {[%emt 0:00:00]} Kf6 {[%emt 0:00:00]} 46. Rc6+ {[%emt 0:00:02]} Kg7 {[%emt 0:00:01]} 0-1

[Event "Djerba Festival Blitz 2025"]
[Site "Djerba"]
[Date "2025.02.21"]
[Round "3.14"]
[White "Minde, Baptiste"]
[Black "Filali, Razzouki Marouane"]
[Result "0-1"]
[ECO "D02"]
[WhiteElo "1896"]
[BlackElo "2234"]
[PlyCount "50"]
[EventDate "2025.02.15"]
[EventType "swiss"]
[EventCountry "TUN"]
[TimeControl "180+3"]

1. d4 {[%emt 0:00:03]} Nf6 {[%emt 0:00:03]} 2. Bf4 {[%emt 0:00:03]} e6 {[%emt 0:00:03]} 3. e3 {[%emt 0:00:02]} d5 {[%emt 0:00:01]} 4. Nf3 {[%emt 0:00:02]} c5 {[%emt 0:03:08]} 5. Nbd2 {[%emt 0:00:11]} Nc6 {[%emt 0:00:00]} 6. c3 {[%emt 0:00:03]} Bd6 {[%emt 0:00:00]} 7. Bg3 {[%emt 0:00:02]} Ne4 {[%emt 0:00:00]} 8. Bd3 {[%emt 0:03:01]} f5 {[%emt 0:00:12]} 9. Ne5 {[%emt 0:00:00]} Nxe5 {[%emt 0:00:03]} 10. Bxe5 {[%emt 0:00:00]} Bxe5 {[%emt 0:00:00]} 11. dxe5 {[%emt 0:00:00]} O-O {[%emt 0:00:00]} 12. O-O {[%emt 0:00:00]} b6 {[%emt 0:00:00]} 13. Nxe4 {[%emt 0:00:00]} fxe4 {[%emt 0:00:00]} 14. Bc2 {[%emt 0:00:00]} Bb7 {[%emt 0:00:00]} 15. Qg4 {[%emt 0:00:00]} Qe7 {[%emt 0:00:00]} 16. Rad1 {[%emt 0:00:00]} g6 {[%emt 0:00:00]} 17. c4 {[%emt 0:00:00]} Rae8 {[%emt 0:00:00]} 18. Bb3 {[%emt 0:00:00]} Rd8 {[%emt 0:00:00]} 19. h4 {[%emt 0:00:00]} Rf5 {[%emt 0:00:00]} 20. Qg3 {[%emt 0:00:00]} Qc7 {[%emt 0:00:00]} 21. f3 {[%emt 0:00:00]} Qxe5 {[%emt 0:00:00]} 22. f4 {[%emt 0:00:00]} Qxb2 {[%emt 0:00:00]} 23. Rf2 {[%emt 0:00:00]} Qc3 {[%emt 0:00:00]} 24. Rfd2 {[%emt 0:00:07]} d4 {[%emt 0:00:45]} 25. exd4 {[%emt 0:00:05]} Qxg3 {[%emt 0:00:00]} 0-1

[Event "Djerba Festival Blitz 2025"]
[Site "Djerba"]
[Date "2025.02.21"]
[Round "3.16"]
[White "Zerarga, Imene"]
[Black "Rene, Benoit"]
[Result "1-0"]
[ECO "B98"]
[WhiteElo "1831"]
[BlackElo "2108"]
[PlyCount "64"]
[EventDate "2025.02.15"]
[EventType "swiss"]
[EventCountry "TUN"]
[TimeControl "180+3"]

1. e4 {[%emt 0:00:03]} c5 {[%emt 0:00:03]} 2. Nf3 {[%emt 0:00:02]} d6 {[%emt 0:00:02]} 3. d4 {[%emt 0:00:02]} cxd4 {[%emt 0:00:02]} 4. Nxd4 {[%emt 0:00:02]} Nf6 {[%emt 0:00:02]} 5. Nc3 {[%emt 0:00:02]} a6 {[%emt 0:00:02]} 6. Bg5 {[%emt 0:00:04]} e6 {[%emt 0:00:13]} 7. f4 {[%emt 0:00:02]} Be7 {[%emt 0:00:07]} 8. Qf3 {[%emt 0:00:06]} h6 {[%emt 0:00:06]} 9. Bh4 {[%emt 0:00:13]} Qc7 {[%emt 0:00:02]} 10. Bf2 {[%emt 0:00:09]} Nbd7 {[%emt 0:00:06]} 11. O-O-O {[%emt 0:00:06]} g5 {[%emt 0:00:17]} 12. g3 {[%emt 0:00:18]} b5 {[%emt 0:00:02]} 13. e5 {[%emt 0:00:21]} Bb7 {[%emt 0:00:04]} 14. Qe2 {[%emt 0:00:14]} dxe5 {[%emt 0:00:26]} 15. fxe5 {[%emt 0:00:05]} Bxh1 {[%emt 0:00:29]} 16. exf6 {[%emt 0:00:05]} Nxf6 {[%emt 0:00:05]} 17. Bh3 {[%emt 0:00:22]} g4 {[%emt 0:00:50]} 18. Bxg4 {[%emt 0:00:19]} Nxg4 {[%emt 0:00:04]} 19. Qxg4 {[%emt 0:00:08]} Bb7 {[%emt 0:00:14]} 20. Qg7 {[%emt 0:00:14]} O-O-O {[%emt 0:00:04]} 21. Qg4 {[%emt 0:00:21]} Bc5 {[%emt 0:00:14]} 22. Bg1 {[%emt 0:00:21]} Rd7 {[%emt 0:00:06]} 23. Nb3 {[%emt 0:00:17]} Rxd1+ {[%emt 0:00:32] Qf4 Rd2 Qxd2 Re8} 24. Qxd1 Rd8 {[%emt 0:00:00]} 25. Qe1 {[%emt 0:00:12]} Bxg1 {[%emt 0:00:00]} 26. Qxg1 {[%emt 0:00:02]} b4 {[%emt 0:00:00]} 27. Na4 {[%emt 0:00:05]} Be4 {[%emt 0:00:00]} 28. Qf2 {[%emt 0:00:07]} f5 {[%emt 0:00:03]} 29. Nac5 {[%emt 0:00:03]} Qd6 {[%emt 0:00:07]} 30. Qe2 {[%emt 0:00:05]} Bb7 {[%emt 0:00:11]} 31. Nxb7 {[%emt 0:00:06]} Kxb7 {[%emt 0:00:03]} 32. Nd2 {[%emt 0:00:00]} Qc5 {[%emt 0:00:03]} 1-0

[Event "Djerba Festival Blitz 2025"]
[Site "Djerba"]
[Date "2025.02.21"]
[Round "3.17"]
[White "Minde, Timothe"]
[Black "Rekik Ismail"]
[Result "0-1"]
[ECO "B07"]
[WhiteElo "1879"]
[BlackElo "2006"]
[PlyCount "66"]
[EventDate "2025.02.15"]
[EventType "swiss"]
[EventCountry "TUN"]
[TimeControl "180+3"]

1. e4 {[%emt 0:00:03]} d6 {[%emt 0:00:03]} 2. d4 {[%emt 0:00:03]} Nf6 {[%emt 0:00:01]} 3. Nc3 {[%emt 0:00:02]} g6 {[%emt 0:00:02]} 4. f3 {[%emt 0:00:03]} Bg7 {[%emt 0:00:01]} 5. Be3 {[%emt 0:00:02]} c6 {[%emt 0:00:02]} 6. Qd2 {[%emt 0:00:03]} b5 {[%emt 0:00:03]} 7. Bh6 {[%emt 0:00:08]} Bxh6 {[%emt 0:00:03]} 8. Qxh6 {[%emt 0:00:03]} b4 {[%emt 0:00:02]} 9. Nce2 {[%emt 0:00:07]} Nbd7 {[%emt 0:00:04]} 10. Ng3 {[%emt 0:00:20]} Qa5 {[%emt 0:00:02]} 11. Qd2 {[%emt 0:00:02]} Ba6 {[%emt 0:00:06]} 12. Bxa6 {[%emt 0:00:07]} Qxa6 {[%emt 0:00:02]} 13. N1e2 {[%emt 0:00:05]} h5 {[%emt 0:00:05]} 14. h4 {[%emt 0:00:14]} Qb5 {[%emt 0:00:10]} 15. O-O {[%emt 0:00:10]} O-O {[%emt 0:00:12]} 16. c3 {[%emt 0:00:18]} a5 {[%emt 0:00:05]} 17. Rae1 {[%emt 0:00:11]} Kh7 {[%emt 0:00:03]} 18. Nf4 {[%emt 0:00:10]} e5 {[%emt 0:00:05]} 19. dxe5 {[%emt 0:01:49]} dxe5 {[%emt 0:00:10]} 20. Nfxh5 {[%emt 0:00:00]} gxh5 {[%emt 0:00:28]} 21. Qg5 {[%emt 0:00:00]} Rg8 {[%emt 0:00:03]} 22. Qf5+ {[%emt 0:00:00]} Rg6 {[%emt 0:00:03]} 23. Nxh5 {[%emt 0:00:00]} Qc5+ {[%emt 0:00:18]} 24. Kh1 {[%emt 0:00:00]} Nxh5 {[%emt 0:00:09]} 25. Qxh5+ {[%emt 0:00:00]} Kg7 {[%emt 0:00:02]} 26. Qf5 {[%emt 0:00:00]} Nf6 {[%emt 0:00:03]} 27. cxb4 {[%emt 0:00:00]} axb4 {[%emt 0:00:07]} 28. g4 {[%emt 0:00:00]} Rxa2 {[%emt 0:00:26]} 29. h5 {[%emt 0:00:00]} Rxb2 {[%emt 0:00:08]} 30. Rc1 {[%emt 0:00:19]} Qe3 {[%emt 0:00:02]} 31. Rb1 {[%emt 0:00:14]} Re2 {[%emt 0:00:19]} 32. hxg6 {[%emt 0:00:06]} Qh6+ {[%emt 0:00:03]} 33. Qh5 {[%emt 0:00:00]} Nxh5 {[%emt 0:00:03]} 0-1

[Event "Djerba Festival Blitz 2025"]
[Site "Djerba"]
[Date "2025.02.21"]
[Round "3.19"]
[White "Badrakova, Kseniya"]
[Black "Messala, Noureddine"]
[Result "1/2-1/2"]
[ECO "B23"]
[WhiteElo "1757"]
[BlackElo "2069"]
[PlyCount "125"]
[EventDate "2025.02.15"]
[EventType "swiss"]
[EventCountry "TUN"]
[TimeControl "180+3"]

1. e4 {[%emt 0:00:03]} c5 {[%emt 0:00:03]} 2. Nc3 {[%emt 0:00:03]} Nc6 {[%emt 0:00:03]} 3. Bb5 {[%emt 0:00:03]} g6 {[%emt 0:00:10]} 4. Bxc6 {[%emt 0:00:04]} dxc6 {[%emt 0:00:02]} 5. d3 {[%emt 0:00:05]} Bg7 {[%emt 0:00:02]} 6. Be3 {[%emt 0:00:06]} b6 {[%emt 0:00:17]} 7. Nge2 {[%emt 0:00:18]} e5 {[%emt 0:00:23]} 8. O-O {[%emt 0:00:11]} g5 {[%emt 0:00:15]} 9. Qd2 {[%emt 0:00:09]} h6 {[%emt 0:00:17]} 10. Ng3 {[%emt 0:00:03]} Ne7 {[%emt 0:00:25]} 11. Nh5 {[%emt 0:00:14]} O-O {[%emt 0:00:09]} 12. Nxg7 {[%emt 0:00:15]} Kxg7 {[%emt 0:00:02]} 13. h4 {[%emt 0:00:03]} f6 {[%emt 0:00:07]} 14. g3 {[%emt 0:00:59]} Bh3 {[%emt 0:00:32]} 15. Rfe1 {[%emt 0:00:08]} Bg4 {[%emt 0:00:20]} 16. Kg2 {[%emt 0:00:06]} Ng6 {[%emt 0:00:20]} 17. f3 {[%emt 0:00:22]} Be6 {[%emt 0:00:02]} 18. Rh1 {[%emt 0:00:06]} Qd7 {[%emt 0:00:18]} 19. h5 {[%emt 0:00:27]} Ne7 {[%emt 0:00:03]} 20. g4 {[%emt 0:00:02]} Rfd8 {[%emt 0:00:02]} 21. Qe2 {[%emt 0:00:09]} Nc8 {[%emt 0:00:07]} 22. Rhd1 {[%emt 0:00:05]} Nd6 {[%emt 0:00:03]} 23. Na4 {[%emt 0:00:05]} Nf7 {[%emt 0:00:05]} 24. Nc3 {[%emt 0:00:03]} Rf8 {[%emt 0:00:03]} 25. Rd2 {[%emt 0:00:05]} Nd8 {[%emt 0:00:01]} 26. Rdd1 {[%emt 0:00:02]} Bf7 {[%emt 0:00:03]} 27. Rd2 {[%emt 0:00:01]} Ne6 {[%emt 0:00:02]} 28. Rdd1 {[%emt 0:00:02]} Nd4 {[%emt 0:00:04]} 29. Bxd4 {[%emt 0:00:03]} cxd4 {[%emt 0:00:03]} 30. Nb1 {[%emt 0:00:04]} c5 {[%emt 0:00:02]} 31. Nd2 {[%emt 0:00:02]} b5 {[%emt 0:00:03]} 32. b3 {[%emt 0:00:03]} Rfc8 {[%emt 0:00:03]} 33. Rab1 {[%emt 0:00:03]} a5 {[%emt 0:00:04]} 34. Qf2 {[%emt 0:00:04]} Be6 {[%emt 0:00:03]} 35. Qe2 {[%emt 0:00:03]} Qf7 {[%emt 0:00:02]} 36. Rdc1 {[%emt 0:00:04]} c4 {[%emt 0:00:04]} 37. dxc4 {[%emt 0:00:03]} bxc4 {[%emt 0:00:02]} 38. bxc4 {[%emt 0:00:04]} Bxc4 {[%emt 0:00:04]} 39. Nxc4 {[%emt 0:00:02]} Rxc4 {[%emt 0:00:05]} 40. Qd3 {[%emt 0:00:02]} Rac8 {[%emt 0:00:02]} 41. Rb2 {[%emt 0:00:03]} Qe7 {[%emt 0:00:04]} 42. Kh3 {[%emt 0:00:02]} Qc7 {[%emt 0:00:03]} 43. Rcb1 {[%emt 0:00:07]} Kg8 {[%emt 0:00:05]} 44. Rb7 {[%emt 0:00:03]} Qd6 {[%emt 0:00:02]} 45. R7b5 {[%emt 0:00:03]} Rxc2 {[%emt 0:00:03]} 46. Rxa5 {[%emt 0:00:07]} R2c7 {[%emt 0:00:03]} 47. Rd5 {[%emt 0:00:00]} Qc6 {[%emt 0:00:03]} 48. Rdb5 {[%emt 0:00:02]} Qc2 {[%emt 0:00:02]} 49. Qxc2 {[%emt 0:00:03]} Rxc2 {[%emt 0:00:02]} 50. R1b2 {[%emt 0:00:02]} R2c3 {[%emt 0:00:03]} 51. Rb8 {[%emt 0:00:03]} d3 {[%emt 0:00:03]} 52. Rxc8+ {[%emt 0:00:04]} Rxc8 {[%emt 0:00:02]} 53. Rd2 {[%emt 0:00:02]} Rd8 {[%emt 0:00:04]} 54. Kg2 {[%emt 0:00:02]} Kf7 {[%emt 0:00:02]} 55. Kf2 {[%emt 0:00:02]} Ke6 {[%emt 0:00:04]} 56. Ke3 {[%emt 0:00:02]} Ra8 {[%emt 0:00:05]} 57. Kxd3 {[%emt 0:00:03]} Ra3+ {[%emt 0:00:02]} 58. Ke2 {[%emt 0:00:02]} Ke7 {[%emt 0:00:03]} 59. Rc2 {[%emt 0:00:04]} Kd7 {[%emt 0:00:03]} 60. Rd2+ {[%emt 0:00:04]} Ke6 {[%emt 0:00:02]} 61. Rc2 {[%emt 0:00:02]} Kd7 {[%emt 0:00:03]} 62. Rd2+ {[%emt 0:00:02]} Ke6 {[%emt 0:00:01]} 63. Rc2 {[%emt 0:00:00] Kd5} 1/2-1/2